Cogmind - Beta 17 @@@ ROGUE MODE // 2026.06.29 @ 17:33:43 Player: N.W.L. Result: Destroyed by as-39826 with Assembled Maul Performance ------------- Evolutions (0) 0 Regions Visited (2) 400 Robots Destroyed (24) 120 Value Destroyed (317) 317 Prototype IDs (0) 0 Alien Tech Used (0) 0 Bonus (0) 0 TOTAL SCORE: 837 Bonus ------- None Cogmind --------- Core Integrity 0/250 Matter 281/300 Energy 100/100 System Corruption 4% Temperature Cool (0) Movement Treading (240) Ox1 Location -10/Mines Parts ------- > --- POWER (1) -------- (None) > --- PROPULSION (2) --- Light Treads > --- UTILITY (2) ------ Large Storage Unit Light Armor Plating > --- WEAPON (2) ------- (None) > --- INVENTORY (15) --- Datajack Peak State ------------ > --- POWER ------------ Ion Engine > --- PROPULSION ------- Light Treads Light Treads > --- UTILITY ---------- Large Storage Unit Improved Light Armor Plating > --- WEAPON ----------- Assault Rifle > --- INVENTORY -------- Ion Engine Light Ion Engine Light Armor Plating Datajack [Rating: 8] Favorites ----------- Power Ion Engine Engine Ion Engine Propulsion Light Treads Treads Light Treads Utility Large Storage Unit Storage Large Storage Unit Protection Light Armor Plating Weapon Assault Rifle Energy Gun Small Laser Ballistic Gun Assault Rifle Build | -11 -10 -10 ------- Run | Yrd Mat Min Slots Evolved . | . . . Power . | . . . Propulsion . | . . . Utility . | . . . Weapon . | . . . Parts Attached 17 | 6 6 5 Power 3 | 1 1 1 Engine 3 | 1 1 1 Core . | . . . Reactor . | . . . Propulsion 3 | 2 . 1 Treads 3 | 2 . 1 Leg . | . . . Wheel . | . . . Hover . | . . . Flight . | . . . Utility 6 | 1 3 2 Device . | . . . Storage 2 | 1 1 . Processor . | . . . Hackware . | . . . Protection 4 | . 2 2 Artifact . | . . . Weapon 5 | 2 2 1 Energy Gun 1 | 1 . . Energy Cannon . | . . . Ballistic Gun 4 | 1 2 1 Ballistic Cannon . | . . . Launcher . | . . . Special Weapon . | . . . Impact Weapon . | . . . Slashing Weapon . | . . . Piercing Weapon . | . . . Special Melee Weapon . | . . . Unidentified Prototypes . | . . . Parts Lost 11 | . . 11 Power 3 | . . 3 Propulsion 2 | . . 2 Utility 3 | . . 3 Weapon 3 | . . 3 Highest Loss Streak 11 | . . 11 To Critical Strikes . | . . . Average Backups 4 | . 4 4 Power 1 | . 1 1 Propulsion . | . . . Utility 1 | . 1 1 Weapon 1 | . 1 . Tool/Special . | . . . Unused Backups 4 | . 3 1 Power . | . . . Propulsion . | . . . Utility . | . . . Weapon 2 | . 2 . Tool/Special 2 | . 1 1 Average Slot Usage (%) 89 | . 92 80 Engine 13 | . 14 11 Treads 26 | . 27 23 Storage 16 | . 16 14 Protection 8 | . 7 13 Energy Gun 3 | . 3 . Ballistic Gun 20 | . 21 17 Peak Build Rating 8 | 6 7 8 Average Rating 6 | 4 6 6 On Entrance 4 | . 6 7 Avg Prop Armor Cover (%) . | . . . Naked Turns . | . . . Heaviest Build 34 | 13 34 32 Greatest Support 40 | 40 40 40 Greatest Overweight (x) 1 | . 1 . Average Overweight (x) . | . . . Largest Inventory Capacity 15 | 8 15 15 Average Capacity 13 | 7 13 15 Most Carried 7 | 2 7 7 Average Carried 4 | . 4 4 Final Capacity 15 | 8 15 15 Final Carried 7 | 2 7 1 Class Distribution -------------------- 100% | Mutant Dominant Class ---------------- Mutant | -10/Materials Mutant | -10/Mines Resources | -11 -10 -10 ----------- Run | Yrd Mat Min Matter Collected 595 | 128 262 205 Remotely . | . . . Salvage Created 595 | . 516 79 Parts 51 | . 46 5 Haulers Intercepted 2 | . 2 . Recyclers Shooed . | . . . Parts Field Recycled . | . . . Retrieved Matter . | . . . Parts Self-Destructed . | . . . Prevented . | . . . Parts Restored . | . . . Kills | -11 -10 -10 ------- Run | Yrd Mat Min Combat Hostiles Destroyed 20 | . 13 7 Melee 2 | . . 2 Guns 18 | . 13 5 Classes Destroyed 8 | . 7 1 Worker 2 | . 2 . Builder 2 | . 2 . Hauler 2 | . 2 . Operator 1 | . 1 . Watcher 1 | . 1 . Swarmer 12 | . 9 3 Grunt 4 | . 4 . Assembled 4 | . . 4 Best Kill Streak 6 | . 6 3 Combat Bots Only 4 | . 4 3 Max Kills in Single Turn 2 | . 2 1 Gunslinging . | . . . Exploded . | . . . Melee 1 | . . 1 Uniques/NPCs Destroyed . | . . . Combat | -11 -10 -10 -------- Run | Yrd Mat Min Hostile Shots Fired 161 | . 63 98 Missed 43 | . 21 22 Hits 118 | . 42 76 Melee 23 | . . 23 Projectile 95 | . 42 53 AOE 8 | . . 8 Part Disruptions 1 | . . 1 Damage Taken 1938 | . 457 1481 Core 277 | . 63 214 Absorbed by Shields . | . . . Regen/Repaired (Parts) 154 | . 154 . Core Remaining (%) 100 | 100 . . Volleys Fired 76 | . 45 31 Largest 2 | . 2 2 Hottest 60 | . 60 40 Shots Fired 127 | . 86 41 Gun 127 | . 86 41 Cannon . | . . . Launcher . | . . . Special . | . . . Kinetic 109 | . 68 41 Thermal 18 | . 18 . Explosive . | . . . Electromagnetic . | . . . Robot Hit Streak 9 | . 9 7 Robot Miss Streak 5 | . 5 2 Penetration Max . | . . . Secondary Targets 3 | . 1 2 Max Gunslinging Chain 1 | . 1 1 Shots Hit Robots 81 | . 55 26 Core Hits 45 | . 29 16 Critical Kills 1 | . 1 . Critical Parts Destroyed . | . . . Critical Strikes 1 | . 1 . Destroy 1 | . 1 . Melee Attacks . | . . . Impact . | . . . Slashing . | . . . Piercing . | . . . Sneak Attacks . | . . . Combat Hostiles . | . . . Follow-up Attacks . | . . . Damage Inflicted 1082 | . 706 376 Guns 1016 | . 685 331 Cannons . | . . . Explosions . | . . . Melee . | . . . Ramming 66 | . 21 45 Kinetic 850 | . 519 331 Thermal 166 | . 166 . Explosive . | . . . Electromagnetic . | . . . Impact . | . . . Slashing . | . . . Piercing . | . . . Highest Corruption 4 | . . 4 Average Corruption 4 | . . 4 Corruption Purged . | . . . Corruption Blocked . | . . . Effects 1 | . . 1 Matter Fused 1 | . . 1 Overload Shots . | . . . Overflow Damage . | . . . Projectiles . | . . . Explosions . | . . . Melee . | . . . Knockbacks . | . . . Impact . | . . . Kinetic . | . . . Secondary . | . . . Self-Inflicted Damage . | . . . Shots . | . . . Rammed 28 | 1 2 25 Targets Rammed 30 | 1 2 27 Kicked . | . . . Crushed 2 | . . 2 Highest Temperature 36 | . 36 12 Average Temperature 13 | . 16 7 Received Heat Transfer 387 | . 147 240 Siege Activations . | . . . Martial Activations . | . . . Shielding Activations . | . . . Robots Disrupted . | . . . Combat Hostiles . | . . . Robots Corrupted . | . . . Combat Hostiles . | . . . Parts Fried . | . . . Impact Corruptions . | . . . Robots Melted . | . . . Combat Hostiles . | . . . Parts Melted . | . . . Heat Transferred 375 | . 375 . Parts Sabotaged . | . . . Parts Stolen . | . . . Parts Stripped . | . . . Power Chain Reactions . | . . . Alert | -11 -10 -10 ------- Run | Yrd Mat Min Maximum Alert Level . | . . . Low Security (%) 100 | 100 100 100 Level 1 . | . . . Level 2 . | . . . Level 3 . | . . . Level 4 . | . . . Level 5 . | . . . High Security . | . . . Max Security . | . . . Peak Influence 147 | . 147 60 Initial 30 | . . 30 Average 63 | . 83 14 Influence Increases 514 | . 444 70 Destroy 0b10 Robot/C 320 | . 260 60 Destroy 0b10 Robot/NC 40 | . 40 . Destroy Leader 66 | . 56 10 Successful Hack 12 | . 12 . Select Force Hacks 60 | . 60 . Destroy Structure 1 | . 1 . Lose Combat Pursuer 15 | . 15 . Influence Decreases 514 | . 366 148 Entered New Map 48 | . . 48 Time Decay 426 | . 366 60 Lost Part 40 | . . 40 Squads Dispatched 4 | . 4 . Investigation 3 | . 3 . Extermination . | . . . Reinforcement 1 | . 1 . Assault . | . . . Garrison . | . . . Intercept . | . . . Searches Triggered . | . . . Construction Impeded . | . . . Haulers Reinforced . | . . . Active Scanning Responses . | . . . Cargo Convoy Interrupts . | . . . Stealth | -11 -10 -10 --------- Run | Yrd Mat Min Distress Signals 1 | . 1 . Communications Jammed . | . . . Distress Signals . | . . . Times Spotted 44 | . 21 23 Peak Tracking Total 8 | . 4 8 Tactical Retreats 3 | . 1 2 Traps | -11 -10 -10 ------- Run | Yrd Mat Min Traps Triggered 3 | . 3 . Indirectly . | . . . Trap Hack Attempts . | . . . Triggered . | . . . Disarmed . | . . . Reprogrammed . | . . . Reused . | . . . Traps Extracted . | . . . Installed . | . . . Triggered . | . . . Machines | -11 -10 -10 ---------- Run | Yrd Mat Min Machines Disabled . | . . . Max in Single Turn . | . . . Machines Repaired . | . . . Machines Dismantled . | . . . Machines Sabotaged . | . . . Overloaded Fab Kills . | . . . Hacking | -11 -10 -10 --------- Run | Yrd Mat Min Machines Accessed 5 | . 5 . Terminals 2 | . 2 . Fabricators . | . . . Repair Stations 1 | . 1 . Recycling Units 2 | . 2 . Scanalyzers . | . . . Garrison Access . | . . . Total Hacks 11 | . 11 . Successful 8 | . 8 . Failed 3 | . 3 . Catastrophic . | . . . Database Lockouts . | . . . Manual 5 | . 5 . Terminals 4 | . 4 . Fabricators . | . . . Repair Stations 4 | . 4 . Recycling Units 3 | . 3 . Scanalyzers . | . . . Garrison Access . | . . . Terminal Hacks . | . . . Fabricator Hacks . | . . . Repair Station Hacks 4 | . 4 . Scan Component 2 | . 2 . Repair 2 | . 2 . Recycling Unit Hacks 1 | . 1 . Retrieve Components 1 | . 1 . Scanalyzer . | . . . Garrison Access Hacks . | . . . Unauthorized Hacks 3 | . 3 . Terminals 1 | . 1 . Disrupt 1 | . 1 . Fabricators . | . . . Repair Stations . | . . . Recycling Units 2 | . 2 . Tunnel 2 | . 2 . Scanalyzers . | . . . Garrison Access . | . . . Data Cores Recovered . | . . . Used . | . . . Hacking Detections 3 | . 3 . Full Trace Events . | . . . Feedback Events . | . . . Feedback Blocked . | . . . Robot Schematics Acquired . | . . . Robots Built . | . . . Authchips . | . . . Time . | . . . Total Robot Build Rating . | . . . Part Schematics Acquired . | . . . Parts Built . | . . . Authchips . | . . . Time . | . . . Total Part Build Rating . | . . . Part Studies Acquired . | . . . Parts Repaired 2 | . 2 . Time 52 | . 52 . Parts Recycled . | . . . Recycled Matter . | . . . Retrieved Matter . | . . . Retrieved Components 3 | . 3 . Parts Scanalyzed . | . . . Part Schematics Acquired . | . . . Parts Damaged . | . . . Bothacking | -11 -10 -10 ------------ Run | Yrd Mat Min Used RIF Installer . | . . . Robots Hacked . | . . . Non-combat . | . . . Combat . | . . . Robot Hacks Applied . | . . . Relay Couplers Released . | . . . Fabnet Peak Effective % . | . . . Robots Rewired . | . . . Allies Hacked . | . . . Hacks Repelled . | . . . Allies | -11 -10 -10 -------- Run | Yrd Mat Min Total Allies . | . . . Largest Group . | . . . Highest-Rated Group . | . . . Highest-Rated Ally . | . . . Total Orders . | . . . Ally Attacks . | . . . Total Damage . | . . . Kills . | . . . Allies Corrupted . | . . . Allies Melted . | . . . Intel | -11 -10 -10 ------- Run | Yrd Mat Min Active Infowar (turns) . | . . . Robot Analysis Total . | . . . Derelict Logs Recovered . | . . . Drone Launches . | . . . Drone Recoveries . | . . . Exploration | -11 -10 -10 ------------- Run | Yrd Mat Min Turns Passed 1267 | 84 913 270 Spaces Moved 523 | 47 402 74 Core 2 | 2 . . Treads 521 | 45 402 74 Legs . | . . . Wheels . | . . . Hover . | . . . Flight . | . . . Fastest Speed 50 | 50 160 160 Average Speed 159 | 155 160 160 Slowest Speed 240 | 160 240 160 Overloaded Moves . | . . . Propulsion Burnouts . | . . . Robots Hopped . | . . . Potential Cave-ins . | . . . Cave-ins Triggered . | . . . Exploration Rate (%) 28 | 4 62 18 Regions Visited 2 Branch Regions 1 Pre-discovered Areas 2 | . 2 . Known Exits Taken . | . . . Unknown Exits Taken 2 | 1 1 . Scrap Searched . | . . . Spaces Dug . | . . . Terrain Destroyed . | . . . Melee . | . . . Projectile . | . . . AOE . | . . . Terrain Rammed . | . . . Walls Destroyed . | . . . Machines Disabled . | . . . Actions | -11 -10 -10 --------- Run | Yrd Mat Min Total 793 | 55 583 155 Wait 124 | . 109 15 Move 521 | 46 401 74 Hop . | . . . Pick Up 12 | 2 9 1 Fast Attach 12 | 6 6 . Attach 8 | . 1 7 Detach 1 | . 1 . Swap 3 | . 3 . Drop 6 | . 6 . Fire 76 | . 45 31 Melee . | . . . Ram . | . . . Kick . | . . . Crush 30 | 1 2 27 Escape Stasis . | . . . Rewire . | . . . Trap . | . . . Miscellaneous . | . . . Route ------- -11/Scrapyard -10/Materials -10/Mines (discovered 1 exit: [*Mat]) History --------- Turn | Location | Event 31 | -11/Scrapyard | Discovered new exit (range 16) 85 | -11/Scrapyard | Entered Materials 316 | -10/Materials | Build established: Mutant 333 | -10/Materials | Discovered new exit (range 15) 576 | -10/Materials | Repaired Lgt. Treads 603 | -10/Materials | Repaired Lgt. Treads 998 | -10/Materials | Entered Mines 1006 | -10/Mines | Discovered new exit (range 6) 1086 | -10/Mines | Met a Derelict bent on vengeance 1096 | -10/Mines | Assembled infested the area 1101 | -10/Mines | Assisted by a Guerilla fighting off Assembled 1130 | -10/Mines | Core integrity fell below 50% 1242 | -10/Mines | Core integrity fell below 20% 1254 | -10/Mines | Lost 11 parts (3p2n3u3w) 1268 | -10/Mines | Destroyed by as-39826 with Assembled Maul Last Messages --------------- 01210_ K-01 Serf collects debris. 01211_ Slammed into K-01 Serf. 01216_ Crushed as-59096. 01216_ as-59096 destroyed. 01217_ Extracted 3 matter. 01217_ Lgt. Ion Engine destroyed. 01217_ System corrupted by crushing effect (+4). 01219_ Slammed into as-39826. 01223_ Imp. Light Armor Plating destroyed. 01224_ Slammed into as-39826. 01227_ Slammed into as-76372. 01228_ Crushed as-76372. 01228_ as-76372 destroyed. 01229_ Acquired 14 matter. 01230_ as-39826 sneak attacks. 01230_ U-05 Engineer destroyed. 01232_ Acquired 17 matter. 01235_ Slammed into as-39826. 01254_ System corrupted: Matter fused (-5). 01254_ Slammed into as-39826. Map ----- +----------------------------------------------------+ | | | | | | | | | ???????????????????????????????????????? | | ???????????????????????????????########? | | ???????????????????????????????# #? | | ???????????????????????????????# #? | | ???????????????????????????????# #? | | ???????????????????????????????# #? | | ???????????????????????????????# #? | | ??????????????????? ?????????#### ###? | | ?????????????????? ??????????# #??? | | ?????????????????? #????###### ###? | | ?????????????????? #????# #? | | ?????????????????? ?????# #? | | ?????????????????? ????## #? | | ??????????????????# ????#T < """ #? | | ?????????????????## ?????## """ #? | | ????????????????## ??????# """ #? | | ????????????????# #??????# #? | | ????????????????# #??????# #? | | ????????????????# #??????# ########? | | ????????????????? #??????# #???????? | | ??????????######## #?#######!#???????? | | ????????### ### #?#!@!%=*%#???????? | | ????????# ###a#######???????? | | ????????# # ##%#?????????????? | | ???????## ##%#?????????????? | | ???????# ! % %* "#?????????????? | | ???????# " #?????????????? | | ???????# # = ####?????????????? | | ???????# #"#???????????????? | | ????? # ####???????????????? | | ????# !%! ##### #??????????????????? | | ????#### ! ???# #??????????????????? | | ??????# =%! ???# #??????????????????? | | ??????# * ???# #??????????????????? | | ??????# #?? ??????????????????? | | ??????## ##?? ##??????????????????? | | ???????## %#??? ????????????????????? | | ????????# ??? ????????????????????? | | ????????# ??? ????????????????????? | | ????????? ##??##????????????????????? | | ?????????? ??????????????????????????? | | ???????????????????????????????????????? | | ???????????????????????????????????????? | | ???????????????????????????????????????? | | ???????????????????????????????????????? | | ???????????????????????????????????????? | +----------------------------------------------------+ Best States ------------- Heat Dissipation 25 Energy Generation 10 Energy Capacity 250 Matter Stores 271 Matter Capacity 300 Sight Range 16 Terrain Scan Density 10 Armor Coverage 150 Evasion (%) 40 Recoil Reduction 2 Item Schematics ----------------- None Robot Schematics ------------------ None Fabricated ------------ Nothing Repaired ---------- Lgt. Treads | 35% | -10/Materials Lgt. Treads | 54% | -10/Materials Studied --------- None Alien Tech Used ----------------- None Achievements -------------- None Challenges ------------ None Game ------ Seed CommIntegrityStrikerail Manual? 0 Play Time 00:10:20 Cumulative 644.5 hours Start 2026.06.29 @ 17:26:15 End 2026.06.29 @ 17:33:43 Sessions 1 Manual Loads 0 Difficulty Rogue Special Mode None Game No. 251 Rogue 251 Adventurer 0 Explorer 0 Win Type - Total 25 Types 10/3/7/1/0/0/1/2/0/1 Lore% 92 Gallery% 84 Achievement% 70 Wizard Run 0 Options --------- Layout 0 ASCII 0 Keyboard 1 Movement Numpad Keybinds 0 Fullscreen 2 Font 18/SmallcapsGlow Map View 76x50 Zoom Use 0% Tactical HUD 1 Map Filters NONE Filters NONE Steam 1 RUN: 6f4a6566-afdf-43a8-a341-929250a07040